[Event "January 9 Late 2024"]
[Site "https://www.chess.com"]
[Date "2024.01.09"]
[Round "9"]
[White "Ghasi, Ameet K"]
[Black "Pham, Le Thao Nguyen"]
[Result "0-1"]
[Board "61"]
[TimeControl "180+1"]
[WhiteFideId "409200"]
[BlackFideId "12401226"]
[WhiteElo "2755"]
[BlackElo "2576"]
[WhiteTeam "ENG"]
[BlackTeam "VIE"]
[WhiteClock "0:00:00"]
[BlackClock "0:00:11"]

1. Nf3 {[%clk 0:02:59]}  d5 {[%clk 0:02:59]} 2. b3 {[%clk 0:02:59]}  c6 {[%clk 0:02:59]} 3. Bb2 {[%clk 0:02:59]}  Bf5 {[%clk 0:02:59]} 4. e3 {[%clk 0:02:59]}  e6 {[%clk 0:03:00]} 5. h3 {[%clk 0:02:59]}  h6 {[%clk 0:03:00]} 6. c4 {[%clk 0:02:58]}  Nf6 {[%clk 0:02:59]} 7. Nc3 {[%clk 0:02:59]}  Nbd7 {[%clk 0:02:59]} 8. a3 {[%clk 0:02:59]}  Bd6 {[%clk 0:02:52]} 9. Be2 {[%clk 0:02:58]}  Qe7 {[%clk 0:02:51]} 10. O-O {[%clk 0:02:58]}  O-O {[%clk 0:02:51]} 11. d4 {[%clk 0:02:57]}  Rfe8 {[%clk 0:02:48]} 12. Bd3 {[%clk 0:02:56]}  Ne4 {[%clk 0:02:39]} 13. Qc2 {[%clk 0:02:45]}  Nxc3 {[%clk 0:02:23]} 14. Qxc3 {[%clk 0:02:39]}  Bxd3 {[%clk 0:02:21]} 15. Qxd3 {[%clk 0:02:40]}  f5 {[%clk 0:02:21]} 16. b4 {[%clk 0:02:36]}  Nf6 {[%clk 0:02:20]} 17. b5 {[%clk 0:02:29]}  Ne4 {[%clk 0:02:01]} 18. a4 {[%clk 0:02:27]}  a6 {[%clk 0:02:01]} 19. Ne5 {[%clk 0:02:03]}  Bxe5 {[%clk 0:01:51]} 20. dxe5 {[%clk 0:02:01]}  Qb4 {[%clk 0:01:39]} 21. Qc2 {[%clk 0:01:34]}  axb5 {[%clk 0:01:33]} 22. cxb5 {[%clk 0:01:27]}  cxb5 {[%clk 0:01:26]} 23. axb5 {[%clk 0:01:28]}  Qxb5 {[%clk 0:01:22]} 24. Rxa8 {[%clk 0:01:21]}  Rxa8 {[%clk 0:01:23]} 25. Bd4 {[%clk 0:01:21]}  Qc6 {[%clk 0:01:21]} 26. Qb2 {[%clk 0:01:14]}  Rc8 {[%clk 0:01:18]} 27. Rb1 {[%clk 0:00:37]}  Qc2 {[%clk 0:01:15]} 28. f3 {[%clk 0:00:32]}  Qxb2 {[%clk 0:01:01]} 29. Bxb2 {[%clk 0:00:28]}  Nd2 {[%clk 0:00:59]} 30. Re1 {[%clk 0:00:21]}  b5 {[%clk 0:00:46]} 31. Ba3 {[%clk 0:00:11]}  Rc4 {[%clk 0:00:40]} 32. Rd1 {[%clk 0:00:09]}  Rc2 {[%clk 0:00:32]} 33. Bd6 {[%clk 0:00:03]}  Nc4 {[%clk 0:00:31]} 34. Rd3 {[%clk 0:00:03]}  Rb2 {[%clk 0:00:29]} 35. e4 {[%clk 0:00:02]}  fxe4 {[%clk 0:00:27]} 36. fxe4 {[%clk 0:00:03]}  dxe4 {[%clk 0:00:28]} 37. Rg3 {[%clk 0:00:03]}  e3 {[%clk 0:00:24]} 38. Kf1 {[%clk 0:00:04]}  b4 {[%clk 0:00:17]} 39. Rg4 {[%clk 0:00:04]}  Rf2+ {[%clk 0:00:14]} 40. Ke1 {[%clk 0:00:04]}  Nb2 {[%clk 0:00:13]} 41. Rd4 {[%clk 0:00:02]}  b3 {[%clk 0:00:14]} 42. Ba3 {[%clk 0:00:02]}  Rxg2 {[%clk 0:00:12]} 43. Rd8+ {[%clk 0:00:00]}  Kh7 {[%clk 0:00:11]} 0-1

[Event "January 9 Late 2024"]
[Site "https://www.chess.com"]
[Date "2024.01.09"]
[Round "9"]
[White "Agibileg, Uurtsaikh"]
[Black "Nilsen, Tobias Lang"]
[Result "1-0"]
[Board "64"]
[TimeControl "180+1"]
[WhiteFideId "4901606"]
[BlackFideId "1521624"]
[WhiteElo "2721"]
[BlackElo "2477"]
[WhiteTeam "MGL"]
[BlackTeam "NOR"]
[WhiteClock "0:00:18"]
[BlackClock "0:00:04"]

1. d4 {[%clk 0:03:00]}  Nf6 {[%clk 0:02:59]} 2. c4 {[%clk 0:03:00]}  e6 {[%clk 0:02:59]} 3. Nc3 {[%clk 0:03:00]}  c5 {[%clk 0:03:00]} 4. d5 {[%clk 0:02:59]}  exd5 {[%clk 0:03:01]} 5. cxd5 {[%clk 0:02:59]}  d6 {[%clk 0:03:02]} 6. e4 {[%clk 0:03:00]}  g6 {[%clk 0:03:03]} 7. Bd3 {[%clk 0:03:00]}  Bg7 {[%clk 0:03:02]} 8. h3 {[%clk 0:03:01]}  O-O {[%clk 0:03:01]} 9. Nf3 {[%clk 0:03:01]}  a6 {[%clk 0:03:01]} 10. a4 {[%clk 0:03:01]}  Re8 {[%clk 0:03:02]} 11. O-O {[%clk 0:03:01]}  Nbd7 {[%clk 0:03:02]} 12. Bf4 {[%clk 0:03:00]}  Qe7 {[%clk 0:03:01]} 13. Bh2 {[%clk 0:02:54]}  Rb8 {[%clk 0:02:57]} 14. Re1 {[%clk 0:02:52]}  Ne5 {[%clk 0:02:41]} 15. Nxe5 {[%clk 0:02:44]}  dxe5 {[%clk 0:02:42]} 16. a5 {[%clk 0:02:41]}  Rd8 {[%clk 0:02:28]} 17. Na4 {[%clk 0:02:39]}  Ne8 {[%clk 0:02:27]} 18. Qc2 {[%clk 0:02:38]}  Nd6 {[%clk 0:02:13]} 19. Qxc5 {[%clk 0:02:30]}  Qg5 {[%clk 0:01:53]} 20. Kh1 {[%clk 0:02:25]}  Qd2 {[%clk 0:01:34]} 21. Red1 {[%clk 0:02:20]}  Qg5 {[%clk 0:01:31]} 22. Nb6 {[%clk 0:02:16]}  Qh5 {[%clk 0:01:25]} 23. Qc7 {[%clk 0:02:02]}  Bxh3 {[%clk 0:01:21]} 24. gxh3 {[%clk 0:02:03]}  Qf3+ {[%clk 0:01:09]} 25. Kg1 {[%clk 0:02:02]}  Qxh3 {[%clk 0:01:02]} 26. Qc2 {[%clk 0:01:58]}  Qg4+ {[%clk 0:00:54]} 27. Bg3 {[%clk 0:01:53]}  f5 {[%clk 0:00:37]} 28. Qe2 {[%clk 0:01:50]}  Qg5 {[%clk 0:00:37]} 29. Kh1 {[%clk 0:01:34]}  Rf8 {[%clk 0:00:21]} 30. Nd7 {[%clk 0:01:25]}  f4 {[%clk 0:00:17]} 31. Bh2 {[%clk 0:01:10]}  f3 {[%clk 0:00:09]} 32. Qf1 {[%clk 0:01:11]}  Qh4 {[%clk 0:00:09]} 33. Nxb8 {[%clk 0:01:08]}  Rf4 {[%clk 0:00:09]} 34. Ra3 {[%clk 0:00:22]}  Rg4 {[%clk 0:00:08]} 35. Bb1 {[%clk 0:00:17]}  Rg2 {[%clk 0:00:08]} 36. Qxg2 {[%clk 0:00:17]}  fxg2+ {[%clk 0:00:09]} 37. Kg1 {[%clk 0:00:17]}  Nxe4 {[%clk 0:00:08]} 38. Bxe4 {[%clk 0:00:16]}  Qxe4 {[%clk 0:00:08]} 39. d6 {[%clk 0:00:17]}  Qe2 {[%clk 0:00:06]} 40. Rad3 {[%clk 0:00:17]}  e4 {[%clk 0:00:06]} 41. R3d2 {[%clk 0:00:18]}  Qf3 {[%clk 0:00:03]} 42. d7 {[%clk 0:00:18]}  e3 {[%clk 0:00:03]} 43. d8=Q+ {[%clk 0:00:18]}  Bf8 {[%clk 0:00:04]} 44. Qd5+ {[%clk 0:00:17]}  Qxd5 {[%clk 0:00:04]} 45. Rxd5 {[%clk 0:00:18]} 1-0

[Event "January 9 Late 2024"]
[Site "https://www.chess.com"]
[Date "2024.01.09"]
[Round "9"]
[White "Yurovskykh, Oleksandr"]
[Black "Sohier, Julien"]
[Result "1-0"]
[Board "70"]
[TimeControl "180+1"]
[WhiteFideId "14134020"]
[BlackFideId "645346"]
[WhiteElo "2627"]
[BlackElo "2381"]
[WhiteTeam "UKR"]
[BlackTeam "FRA"]
[WhiteClock "0:01:34"]
[BlackClock "0:01:10"]

1. d4 {[%clk 0:03:00]}  d5 {[%clk 0:02:59]} 2. Bf4 {[%clk 0:03:00]}  Nf6 {[%clk 0:02:58]} 3. e3 {[%clk 0:03:01]}  c5 {[%clk 0:02:57]} 4. c3 {[%clk 0:03:01]}  Nc6 {[%clk 0:02:57]} 5. Nd2 {[%clk 0:03:01]}  e6 {[%clk 0:02:56]} 6. Ngf3 {[%clk 0:03:00]}  Be7 {[%clk 0:02:55]} 7. Bd3 {[%clk 0:02:58]}  O-O {[%clk 0:02:54]} 8. O-O {[%clk 0:02:58]}  b6 {[%clk 0:02:54]} 9. Qe2 {[%clk 0:02:57]}  Bb7 {[%clk 0:02:53]} 10. Rad1 {[%clk 0:02:57]}  Bd6 {[%clk 0:02:46]} 11. Bg5 {[%clk 0:02:44]}  Be7 {[%clk 0:02:46]} 12. Rfe1 {[%clk 0:02:44]}  h6 {[%clk 0:02:46]} 13. Bh4 {[%clk 0:02:44]}  Nh5 {[%clk 0:02:41]} 14. Bxe7 {[%clk 0:02:44]}  Qxe7 {[%clk 0:02:42]} 15. Ne5 {[%clk 0:02:30]}  Nxe5 {[%clk 0:02:24]} 16. dxe5 {[%clk 0:02:31]}  g6 {[%clk 0:02:10]} 17. f4 {[%clk 0:02:27]}  f5 {[%clk 0:01:55]} 18. exf6 {[%clk 0:02:24]}  Qxf6 {[%clk 0:01:53]} 19. Nf3 {[%clk 0:02:23]}  Ng7 {[%clk 0:01:37]} 20. Ne5 {[%clk 0:02:21]}  Nf5 {[%clk 0:01:15]} 21. Nd7 {[%clk 0:02:10]}  Qh4 {[%clk 0:01:15]} 22. Nxf8 {[%clk 0:02:08]}  Rxf8 {[%clk 0:01:16]} 23. g3 {[%clk 0:01:47]}  Qh3 {[%clk 0:01:15]} 24. Qg2 {[%clk 0:01:47]}  Qg4 {[%clk 0:01:13]} 25. Be2 {[%clk 0:01:37]}  Nxe3 {[%clk 0:01:10]} 26. Bxg4 {[%clk 0:01:34]}  Nxg2 {[%clk 0:01:10]} 1-0

[Event "January 9 Late 2024"]
[Site "https://www.chess.com"]
[Date "2024.01.09"]
[Round "9"]
[White "Zavgorodniy, Sergiy"]
[Black "Dilmukhametov, Artur"]
[Result "0-1"]
[Board "71"]
[TimeControl "180+1"]
[WhiteFideId "14110148"]
[BlackFideId "24179922"]
[WhiteElo "2625"]
[BlackElo "2337"]
[WhiteTeam "UKR"]
[BlackTeam "RUS"]
[WhiteClock "0:00:00"]
[BlackClock "0:00:27"]

1. d4 {[%clk 0:03:00]}  d5 {[%clk 0:02:57]} 2. c4 {[%clk 0:03:01]}  c6 {[%clk 0:02:57]} 3. e3 {[%clk 0:03:00]}  Nf6 {[%clk 0:02:58]} 4. Bd3 {[%clk 0:03:00]}  a6 {[%clk 0:02:58]} 5. Nd2 {[%clk 0:02:59]}  Bg4 {[%clk 0:02:58]} 6. Qc2 {[%clk 0:02:59]}  e6 {[%clk 0:02:58]} 7. Ngf3 {[%clk 0:02:59]}  Nbd7 {[%clk 0:02:58]} 8. O-O {[%clk 0:02:59]}  Be7 {[%clk 0:02:58]} 9. b3 {[%clk 0:02:59]}  O-O {[%clk 0:02:58]} 10. Ne5 {[%clk 0:03:00]}  Nxe5 {[%clk 0:02:58]} 11. dxe5 {[%clk 0:02:59]}  Nd7 {[%clk 0:02:51]} 12. Bxh7+ {[%clk 0:02:40]}  Kh8 {[%clk 0:02:51]} 13. f4 {[%clk 0:02:19]}  g6 {[%clk 0:02:45]} 14. Bxg6 {[%clk 0:02:15]}  fxg6 {[%clk 0:02:46]} 15. Qxg6 {[%clk 0:02:15]}  Bf5 {[%clk 0:02:46]} 16. Qh6+ {[%clk 0:02:15]}  Bh7 {[%clk 0:02:33]} 17. Qxe6 {[%clk 0:02:11]}  Nc5 {[%clk 0:02:32]} 18. Qh6 {[%clk 0:02:09]}  Nd3 {[%clk 0:02:27]} 19. Rf3 {[%clk 0:02:06]}  Bc5 {[%clk 0:02:16]} 20. Rh3 {[%clk 0:02:03]}  Qe7 {[%clk 0:02:14]} 21. cxd5 {[%clk 0:01:17]}  cxd5 {[%clk 0:02:12]} 22. Nf1 {[%clk 0:01:10]}  Nxf4 {[%clk 0:02:07]} 23. Bb2 {[%clk 0:00:33]}  Nxh3+ {[%clk 0:02:00]} 24. Qxh3 {[%clk 0:00:34]}  Kg8 {[%clk 0:01:23]} 25. e6 {[%clk 0:00:29]}  Rf5 {[%clk 0:01:22]} 26. Ng3 {[%clk 0:00:24]}  Bxe3+ {[%clk 0:01:22]} 27. Kh1 {[%clk 0:00:24]}  Rg5 {[%clk 0:01:04]} 28. Nh5 {[%clk 0:00:23]}  d4 {[%clk 0:01:05]} 29. Rf1 {[%clk 0:00:13]}  Rf8 {[%clk 0:01:05]} 30. Rf7 {[%clk 0:00:06]}  Rxf7 {[%clk 0:00:55]} 31. exf7+ {[%clk 0:00:07]}  Kxf7 {[%clk 0:00:52]} 32. Ng3 {[%clk 0:00:06]}  Bg6 {[%clk 0:00:44]} 33. Qh8 {[%clk 0:00:06]}  Qf8 {[%clk 0:00:33]} 34. Qh4 {[%clk 0:00:04]}  Qe7 {[%clk 0:00:31]} 35. Qh8 {[%clk 0:00:04]}  Qf6 {[%clk 0:00:30]} 36. Qc8 {[%clk 0:00:00]}  Qc6 {[%clk 0:00:27]} 0-1

[Event "January 9 Late 2024"]
[Site "https://www.chess.com"]
[Date "2024.01.09"]
[Round "9"]
[White "Dourerassou, Jonathan"]
[Black "Nita, Lucian"]
[Result "1/2-1/2"]
[Board "72"]
[TimeControl "180+1"]
[WhiteFideId "628050"]
[BlackFideId "1206923"]
[WhiteElo "2789"]
[BlackElo "2348"]
[WhiteTeam "FRA"]
[BlackTeam "ROU"]
[WhiteClock "0:01:08"]
[BlackClock "0:01:00"]

1. d4 {[%clk 0:02:59]}  d6 {[%clk 0:03:00]} 2. e4 {[%clk 0:02:59]}  Nf6 {[%clk 0:02:59]} 3. Nc3 {[%clk 0:02:59]}  e5 {[%clk 0:02:53]} 4. dxe5 {[%clk 0:02:57]}  dxe5 {[%clk 0:02:53]} 5. Qxd8+ {[%clk 0:02:57]}  Kxd8 {[%clk 0:02:52]} 6. Bg5 {[%clk 0:02:58]}  Be6 {[%clk 0:02:49]} 7. O-O-O+ {[%clk 0:02:58]}  Nd7 {[%clk 0:02:47]} 8. Nf3 {[%clk 0:02:58]}  Kc8 {[%clk 0:02:46]} 9. a3 {[%clk 0:02:55]}  c6 {[%clk 0:02:46]} 10. h3 {[%clk 0:02:53]}  Kc7 {[%clk 0:02:46]} 11. Bh4 {[%clk 0:02:49]}  Nh5 {[%clk 0:02:38]} 12. Ng5 {[%clk 0:02:45]}  Re8 {[%clk 0:02:30]} 13. Nxe6+ {[%clk 0:02:44]}  fxe6 {[%clk 0:02:18]} 14. Bc4 {[%clk 0:02:18]}  h6 {[%clk 0:02:14]} 15. Ne2 {[%clk 0:02:15]}  g5 {[%clk 0:02:12]} 16. Bg3 {[%clk 0:02:12]}  Nf4 {[%clk 0:02:08]} 17. Bxf4 {[%clk 0:02:06]}  gxf4 {[%clk 0:01:51]} 18. g4 {[%clk 0:02:05]}  b5 {[%clk 0:01:46]} 19. Ba2 {[%clk 0:02:02]}  Bc5 {[%clk 0:01:42]} 20. f3 {[%clk 0:02:01]}  Be3+ {[%clk 0:01:42]} 21. Kb1 {[%clk 0:02:01]}  a5 {[%clk 0:01:41]} 22. c3 {[%clk 0:02:01]}  c5 {[%clk 0:01:38]} 23. Kc2 {[%clk 0:01:57]}  a4 {[%clk 0:01:35]} 24. h4 {[%clk 0:01:38]}  c4 {[%clk 0:01:34]} 25. Ng1 {[%clk 0:01:30]}  Bxg1 {[%clk 0:01:32]} 26. Rhxg1 {[%clk 0:01:29]}  Nc5 {[%clk 0:01:30]} 27. Bb1 {[%clk 0:01:28]}  Rd8 {[%clk 0:01:28]} 28. Rxd8 {[%clk 0:01:25]}  Rxd8 {[%clk 0:01:27]} 29. Rd1 {[%clk 0:01:26]}  Rxd1 {[%clk 0:01:00]} 30. Kxd1 {[%clk 0:01:27]}  Kd6 {[%clk 0:01:00]} 31. Bc2 {[%clk 0:01:27]}  Ke7 {[%clk 0:01:00]} 32. Ke2 {[%clk 0:01:27]}  Kf6 {[%clk 0:01:00]} 33. Kf2 {[%clk 0:01:27]}  Na6 {[%clk 0:00:59]} 34. Kg2 {[%clk 0:01:24]}  Nc7 {[%clk 0:00:58]} 35. Kf2 {[%clk 0:01:12]}  Ne8 {[%clk 0:00:58]} 36. Kg2 {[%clk 0:01:11]}  Nd6 {[%clk 0:00:58]} 37. Kf2 {[%clk 0:01:10]}  Nc8 {[%clk 0:00:59]} 38. Kg2 {[%clk 0:01:10]}  Ne7 {[%clk 0:00:59]} 39. Bd1 {[%clk 0:01:08]}  Ng6 {[%clk 0:00:59]} 40. Kh3 {[%clk 0:01:08]}  Ne7 {[%clk 0:00:59]} 41. Bc2 {[%clk 0:01:08]}  Nc8 {[%clk 0:00:58]} 42. Kg2 {[%clk 0:01:08]}  Nd6 {[%clk 0:00:59]} 43. Kf2 {[%clk 0:01:08]}  Nb7 {[%clk 0:00:59]} 44. Kg2 {[%clk 0:01:07]}  Nd8 {[%clk 0:00:59]} 45. Kf2 {[%clk 0:01:07]}  Nc6 {[%clk 0:00:59]} 46. Kg2 {[%clk 0:01:07]}  Na7 {[%clk 0:01:00]} 47. Kf2 {[%clk 0:01:07]}  Nc8 {[%clk 0:01:00]} 48. Kg2 {[%clk 0:01:08]} 1/2-1/2

[Event "January 9 Late 2024"]
[Site "https://www.chess.com"]
[Date "2024.01.09"]
[Round "9"]
[White "Novik, Maxim"]
[Black "Zubritskiy, Artyom"]
[Result "0-1"]
[Board "73"]
[TimeControl "180+1"]
[WhiteFideId "4102924"]
[BlackFideId "4181247"]
[WhiteElo "2513"]
[BlackElo "2748"]
[WhiteTeam "LTU"]
[BlackTeam "FID"]
[WhiteClock "0:01:05"]
[BlackClock "0:01:18"]

1. e4 {[%clk 0:03:00]}  c5 {[%clk 0:03:00]} 2. Nf3 {[%clk 0:03:00]}  Nf6 {[%clk 0:03:00]} 3. e5 {[%clk 0:03:00]}  Nd5 {[%clk 0:03:01]} 4. c3 {[%clk 0:03:00]}  d6 {[%clk 0:03:01]} 5. d4 {[%clk 0:03:00]}  cxd4 {[%clk 0:03:01]} 6. cxd4 {[%clk 0:03:00]}  Nc6 {[%clk 0:03:02]} 7. Bc4 {[%clk 0:02:59]}  e6 {[%clk 0:03:01]} 8. O-O {[%clk 0:02:59]}  Be7 {[%clk 0:03:00]} 9. exd6 {[%clk 0:02:58]}  Qxd6 {[%clk 0:03:00]} 10. Nc3 {[%clk 0:02:58]}  Nxc3 {[%clk 0:02:54]} 11. bxc3 {[%clk 0:02:58]}  O-O {[%clk 0:02:54]} 12. Re1 {[%clk 0:02:56]}  Rd8 {[%clk 0:02:36]} 13. Bd3 {[%clk 0:02:55]}  Qd5 {[%clk 0:02:12]} 14. Ne5 {[%clk 0:02:49]}  g6 {[%clk 0:01:56]} 15. Be4 {[%clk 0:02:30]}  Qd6 {[%clk 0:01:56]} 16. Nxc6 {[%clk 0:02:01]}  bxc6 {[%clk 0:01:56]} 17. Qf3 {[%clk 0:02:02]}  Bb7 {[%clk 0:01:50]} 18. Bf4 {[%clk 0:02:00]}  Qd7 {[%clk 0:01:50]} 19. Rab1 {[%clk 0:01:58]}  Rac8 {[%clk 0:01:48]} 20. Be5 {[%clk 0:01:50]}  Ba8 {[%clk 0:01:42]} 21. Qf4 {[%clk 0:01:49]}  c5 {[%clk 0:01:36]} 22. Qh6 {[%clk 0:01:47]}  f6 {[%clk 0:01:28]} 23. Bxg6 {[%clk 0:01:17]}  Bf8 {[%clk 0:01:27]} 24. Bxh7+ {[%clk 0:01:17]}  Qxh7 {[%clk 0:01:26]} 25. Qxf6 {[%clk 0:01:14]}  Re8 {[%clk 0:01:18]} 26. Re3 {[%clk 0:01:05]}  Qxb1+ {[%clk 0:01:18]} 0-1

[Event "January 9 Late 2024"]
[Site "https://www.chess.com"]
[Date "2024.01.09"]
[Round "9"]
[White "Kosteniuk, Alexandra"]
[Black "Mullodzhanov, Nathaniel"]
[Result "1-0"]
[Board "75"]
[TimeControl "180+1"]
[WhiteFideId "4128125"]
[BlackFideId "30961580"]
[WhiteElo "2711"]
[BlackElo "2509"]
[WhiteTeam "SUI"]
[BlackTeam "USA"]
[WhiteClock "0:00:19"]
[BlackClock "0:00:05"]

1. e4 {[%clk 0:03:00]}  c6 {[%clk 0:03:00]} 2. Nc3 {[%clk 0:02:59]}  d5 {[%clk 0:03:00]} 3. Nf3 {[%clk 0:03:00]}  Bg4 {[%clk 0:03:00]} 4. h3 {[%clk 0:03:00]}  Bxf3 {[%clk 0:03:00]} 5. Qxf3 {[%clk 0:03:00]}  e6 {[%clk 0:03:00]} 6. g3 {[%clk 0:03:01]}  Nd7 {[%clk 0:03:00]} 7. d4 {[%clk 0:03:00]}  Bb4 {[%clk 0:02:59]} 8. e5 {[%clk 0:02:58]}  Ne7 {[%clk 0:02:58]} 9. Bg2 {[%clk 0:02:56]}  O-O {[%clk 0:02:58]} 10. O-O {[%clk 0:02:55]}  Nf5 {[%clk 0:02:58]} 11. Ne2 {[%clk 0:02:49]}  f6 {[%clk 0:02:55]} 12. Qb3 {[%clk 0:02:46]}  Qb6 {[%clk 0:02:47]} 13. c3 {[%clk 0:02:46]}  Be7 {[%clk 0:02:47]} 14. Nf4 {[%clk 0:02:39]}  fxe5 {[%clk 0:02:38]} 15. Nxe6 {[%clk 0:02:39]}  Rf6 {[%clk 0:02:37]} 16. Ng5 {[%clk 0:02:22]}  Qxb3 {[%clk 0:02:37]} 17. axb3 {[%clk 0:02:21]}  exd4 {[%clk 0:02:37]} 18. Rd1 {[%clk 0:02:17]}  Bc5 {[%clk 0:02:30]} 19. c4 {[%clk 0:02:00]}  Nb6 {[%clk 0:02:14]} 20. cxd5 {[%clk 0:01:53]}  cxd5 {[%clk 0:02:14]} 21. Ra5 {[%clk 0:01:50]}  Rc8 {[%clk 0:01:58]} 22. b4 {[%clk 0:01:39]}  Bxb4 {[%clk 0:01:57]} 23. Rxd5 {[%clk 0:01:38]}  Nxd5 {[%clk 0:01:36]} 24. Bxd5+ {[%clk 0:01:38]}  Kh8 {[%clk 0:01:33]} 25. Nf7+ {[%clk 0:01:38]}  Rxf7 {[%clk 0:01:33]} 26. Bxf7 {[%clk 0:01:39]}  g6 {[%clk 0:01:26]} 27. Bf4 {[%clk 0:01:33]}  Kg7 {[%clk 0:01:26]} 28. Be6 {[%clk 0:01:33]}  Rc5 {[%clk 0:01:08]} 29. Bxf5 {[%clk 0:01:27]}  Rxf5 {[%clk 0:01:07]} 30. Rxd4 {[%clk 0:01:27]}  Bc5 {[%clk 0:01:07]} 31. Rd7+ {[%clk 0:01:25]}  Rf7 {[%clk 0:01:07]} 32. Rd5 {[%clk 0:01:22]}  b6 {[%clk 0:01:04]} 33. Kg2 {[%clk 0:01:16]}  Re7 {[%clk 0:01:03]} 34. Be5+ {[%clk 0:01:15]}  Kf7 {[%clk 0:01:03]} 35. f4 {[%clk 0:01:15]}  Ke6 {[%clk 0:01:01]} 36. Rd3 {[%clk 0:01:14]}  Rd7 {[%clk 0:01:00]} 37. Rxd7 {[%clk 0:01:14]}  Kxd7 {[%clk 0:01:01]} 38. Kf3 {[%clk 0:01:15]}  h5 {[%clk 0:00:57]} 39. Ke4 {[%clk 0:01:09]}  Ke6 {[%clk 0:00:57]} 40. g4 {[%clk 0:01:08]}  hxg4 {[%clk 0:00:55]} 41. hxg4 {[%clk 0:01:09]}  a5 {[%clk 0:00:54]} 42. Bc3 {[%clk 0:01:01]}  Bf2 {[%clk 0:00:49]} 43. f5+ {[%clk 0:01:00]}  gxf5+ {[%clk 0:00:50]} 44. gxf5+ {[%clk 0:01:00]}  Ke7 {[%clk 0:00:47]} 45. Kd5 {[%clk 0:01:00]}  Be3 {[%clk 0:00:41]} 46. Kc6 {[%clk 0:01:00]}  Bf2 {[%clk 0:00:38]} 47. Be5 {[%clk 0:00:58]}  a4 {[%clk 0:00:36]} 48. Kb5 {[%clk 0:00:56]}  a3 {[%clk 0:00:35]} 49. bxa3 {[%clk 0:00:54]}  Be3 {[%clk 0:00:30]} 50. a4 {[%clk 0:00:54]}  Kd7 {[%clk 0:00:29]} 51. Bb8 {[%clk 0:00:47]}  Ke7 {[%clk 0:00:27]} 52. Bc7 {[%clk 0:00:31]}  Kf6 {[%clk 0:00:27]} 53. Bxb6 {[%clk 0:00:32]}  Bd2 {[%clk 0:00:27]} 54. Ba5 {[%clk 0:00:32]}  Bf4 {[%clk 0:00:21]} 55. Bd8+ {[%clk 0:00:27]}  Kxf5 {[%clk 0:00:21]} 56. a5 {[%clk 0:00:27]}  Ke6 {[%clk 0:00:21]} 57. Kc6 {[%clk 0:00:27]}  Bb8 {[%clk 0:00:18]} 58. a6 {[%clk 0:00:27]}  Ba7 {[%clk 0:00:18]} 59. Kb7 {[%clk 0:00:24]}  Bc5 {[%clk 0:00:03]} 60. Bb6 {[%clk 0:00:24]}  Bxb6 {[%clk 0:00:01]} 61. Kxb6 {[%clk 0:00:24]}  Kd7 {[%clk 0:00:02]} 62. Kb7 {[%clk 0:00:25]}  Kd8 {[%clk 0:00:02]} 63. a7 {[%clk 0:00:25]}  Kd7 {[%clk 0:00:03]} 64. a8=Q {[%clk 0:00:25]}  Kd6 {[%clk 0:00:03]} 65. Qd8+ {[%clk 0:00:23]}  Ke5 {[%clk 0:00:04]} 66. Kc6 {[%clk 0:00:22]}  Kf4 {[%clk 0:00:05]} 67. Qe7 {[%clk 0:00:22]}  Kg4 {[%clk 0:00:04]} 68. Qf7 {[%clk 0:00:21]}  Kg5 {[%clk 0:00:04]} 69. Kd5 {[%clk 0:00:21]}  Kg4 {[%clk 0:00:03]} 70. Ke4 {[%clk 0:00:20]}  Kg5 {[%clk 0:00:04]} 71. Qf5+ {[%clk 0:00:19]}  Kh4 {[%clk 0:00:04]} 72. Qg6 {[%clk 0:00:19]}  Kh3 {[%clk 0:00:04]} 73. Kf3 {[%clk 0:00:19]}  Kh2 {[%clk 0:00:05]} 74. Qg2# {[%clk 0:00:19]} 1-0

[Event "January 9 Late 2024"]
[Site "https://www.chess.com"]
[Date "2024.01.09"]
[Round "9"]
[White "Arabidze, Meri"]
[Black "Santos Flores, Alberto"]
[Result "0-1"]
[Board "76"]
[TimeControl "180+1"]
[WhiteFideId "13604040"]
[BlackFideId "3601234"]
[WhiteElo "2704"]
[BlackElo "2508"]
[WhiteTeam "GEO"]
[BlackTeam "ECU"]
[WhiteClock "0:00:00"]
[BlackClock "0:00:06"]

1. Nf3 {[%clk 0:03:00]}  Nf6 {[%clk 0:02:58]} 2. b3 {[%clk 0:03:00]}  d5 {[%clk 0:02:58]} 3. Bb2 {[%clk 0:03:01]}  Bf5 {[%clk 0:02:58]} 4. c4 {[%clk 0:02:59]}  e6 {[%clk 0:02:57]} 5. g3 {[%clk 0:02:58]}  c6 {[%clk 0:02:56]} 6. Bg2 {[%clk 0:02:58]}  h6 {[%clk 0:02:55]} 7. O-O {[%clk 0:02:58]}  Nbd7 {[%clk 0:02:56]} 8. d3 {[%clk 0:02:57]}  Be7 {[%clk 0:02:55]} 9. Nbd2 {[%clk 0:02:56]}  O-O {[%clk 0:02:55]} 10. Rc1 {[%clk 0:02:56]}  Bh7 {[%clk 0:02:51]} 11. Rc2 {[%clk 0:02:56]}  a5 {[%clk 0:02:50]} 12. a3 {[%clk 0:02:55]}  Ne8 {[%clk 0:02:43]} 13. Qa1 {[%clk 0:02:35]}  Bf6 {[%clk 0:02:43]} 14. Bxf6 {[%clk 0:02:35]}  Qxf6 {[%clk 0:02:43]} 15. Rb2 {[%clk 0:02:25]}  Nc5 {[%clk 0:02:39]} 16. Qc1 {[%clk 0:02:14]}  Qe7 {[%clk 0:02:37]} 17. Rb1 {[%clk 0:02:12]}  Nf6 {[%clk 0:02:32]} 18. b4 {[%clk 0:02:08]}  axb4 {[%clk 0:02:32]} 19. axb4 {[%clk 0:02:09]}  Ncd7 {[%clk 0:02:32]} 20. Qb2 {[%clk 0:02:05]}  Nb6 {[%clk 0:02:22]} 21. c5 {[%clk 0:02:02]}  Nbd7 {[%clk 0:02:20]} 22. Ra1 {[%clk 0:02:01]}  e5 {[%clk 0:02:17]} 23. Nb3 {[%clk 0:01:27]}  e4 {[%clk 0:02:14]} 24. dxe4 {[%clk 0:01:28]}  Nxe4 {[%clk 0:02:11]} 25. e3 {[%clk 0:01:23]}  Qf6 {[%clk 0:01:59]} 26. Nbd4 {[%clk 0:01:22]}  Bg6 {[%clk 0:01:53]} 27. Rxa8 {[%clk 0:01:15]}  Rxa8 {[%clk 0:01:53]} 28. Ra1 {[%clk 0:01:16]}  Rb8 {[%clk 0:01:45]} 29. Ra7 {[%clk 0:01:14]}  Ne5 {[%clk 0:01:32]} 30. Nxe5 {[%clk 0:01:10]}  Qxe5 {[%clk 0:01:33]} 31. Qa2 {[%clk 0:01:01]}  Qf6 {[%clk 0:01:18]} 32. Bxe4 {[%clk 0:00:30]}  Bxe4 {[%clk 0:01:17]} 33. Rxb7 {[%clk 0:00:31]}  Rc8 {[%clk 0:00:53]} 34. Rb6 {[%clk 0:00:30]}  h5 {[%clk 0:00:40]} 35. b5 {[%clk 0:00:29]}  h4 {[%clk 0:00:35]} 36. Rxc6 {[%clk 0:00:27]}  Rxc6 {[%clk 0:00:35]} 37. Qa8+ {[%clk 0:00:27]}  Kh7 {[%clk 0:00:32]} 38. Qxc6 {[%clk 0:00:27]}  Qe5 {[%clk 0:00:27]} 39. Qd6 {[%clk 0:00:25]}  Qh5 {[%clk 0:00:25]} 40. f3 {[%clk 0:00:19]}  Bxf3 {[%clk 0:00:24]} 41. Qf4 {[%clk 0:00:18]}  Be4 {[%clk 0:00:16]} 42. g4 {[%clk 0:00:18]}  Qg6 {[%clk 0:00:14]} 43. c6 {[%clk 0:00:13]}  f5 {[%clk 0:00:12]} 44. g5 {[%clk 0:00:12]}  Qh5 {[%clk 0:00:10]} 45. g6+ {[%clk 0:00:04]}  Kxg6 {[%clk 0:00:09]} 46. Kf2 {[%clk 0:00:04]}  Qd1 {[%clk 0:00:09]} 47. Qd6+ {[%clk 0:00:04]}  Kh7 {[%clk 0:00:09]} 48. c7 {[%clk 0:00:02]}  Qd2+ {[%clk 0:00:06]} 49. Ne2 {[%clk 0:00:00]}  Bd3 {[%clk 0:00:06]} 0-1